Workbook

Sheet Macierz źr do obl
B2: MACIERZ ŹRÓDŁOWA DO OBLICZEŃ | I2: ŹRÓDŁOWA | K2: FUNKCJA TRANSFORMUJĄCA | N2: MACIERZ TRANSFORMOWANA
A3: KRYTERIA | C3: WARIANT 1 PZPWM | D3: WARIANT 2 WYKONAWCY | E3: WARIANT 3 DK50 i A2 | F3: WARIANT 4 DK50 i 400kV | G3: WARIANT 5 HISTORYCZNY | H3: WER | I3: MIN | J3: MAX | K3: WART. DOLNA | L3: WART. GÓRNA | M3: TYP | N3: WARIANT 1 PZPWM | O3: WARIANT 2 WYKONAWCY | P3: WARIANT 3 DK50 i A2 | Q3: WARIANT 4 DK50 i 400kV | R3: WARIANT 5 HISTORYCZNY
A4: 1 | B4: Liczba budynków mieszkalnych w korytarzu 70 m [n] | C4: 7 | D4: 3 | E4: 4 | F4: 27 | G4: 117 | H4: v | I4: =MIN(C4:G4) -> 3 | J4: =MAX(C4:G4) -> 117 | K4: 1 | L4: 0 | M4: Lin. malejąca | N4: =(C4-$I4)*($L4-$K4)/($J4-$I4)+$K4 -> 0.9649122807 | O4: =(D4-$I4)*($L4-$K4)/($J4-$I4)+$K4 -> 1 | P4: 0.9912280702 | Q4: 0.7894736842 | R4: 0
A5: 2 | B5: Liczba budynków mieszkalnych w pasie 35-100 m [n] | C5: 158 | D5: 82 | E5: 51 | F5: 65 | G5: 252 | H5: v | I5: =MIN(C5:G5) -> 51 | J5: =MAX(C5:G5) -> 252 | K5: 1 | L5: 0 | M5: Lin. malejąca | N5: 0.4676616915 | O5: =(D5-$I5)*($L5-$K5)/($J5-$I5)+$K5 -> 0.8457711443 | P5: =(E5-$I5)*($L5-$K5)/($J5-$I5)+$K5 -> 1 | Q5: =(F5-$I5)*($L5-$K5)/($J5-$I5)+$K5 -> 0.9303482587 | R5: =(G5-$I5)*($L5-$K5)/($J5-$I5)+$K5 -> 0
A6: 3 | B6: Liczba budynków mieszkalnych w pasie 100-200 m [n] | C6: 415 | D6: 354 | E6: 307 | F6: 354 | G6: 559 | H6: v | I6: 307 | J6: 559 | K6: 1 | L6: 0 | M6: Lin. malejąca | N6: 0.5714285714 | O6: 0.8134920635 | P6: 1 | Q6: 0.8134920635 | R6: 0
A7: 4 | B7: Liczba budynków mieszkalnych w pasie 200-400 m [n] | C7: 1285 | D7: 1134 | E7: 985 | F7: 1099 | G7: 1344 | H7: v | I7: 985 | J7: 1344 | K7: 1 | L7: 0 | M7: Lin. malejąca | N7: 0.1643454039 | O7: 0.5849582173 | P7: 1 | Q7: 0.6824512535 | R7: 0
A8: 5 | B8: Liczba budynków użyteczności publicznej 0-400m [n] | C8: 50 | D8: 37 | E8: 34 | F8: 42 | G8: 110 | H8: v | I8: 34 | J8: 110 | K8: 1 | L8: 0 | M8: Lin. malejąca | N8: 0.7894736842 | O8: 0.9605263158 | P8: 1 | Q8: 0.8947368421 | R8: 0
A9: 6 | B9: Zbliżenia do budynków wpisanych do rejestru zabytków 0-100m [n] | C9: 1 | D9: 0 | E9: 0 | F9: 1 | G9: 0 | H9: v | I9: 0 | J9: 1 | K9: 1 | L9: 0 | M9: Lin. malejąca | N9: 0 | O9: 1 | P9: 1 | Q9: 0 | R9: 1
A10: 7 | B10: Długość przecięcia parków krajobrazowych [km] | C10: 0 | D10: 0 | E10: 0 | F10: 0 | G10: 3.74 | H10: v | I10: 0 | J10: 3.74 | K10: 1 | L10: 0 | M10: Lin. malejąca | N10: =(C10-$I10)*($L10-$K10)/($J10-$I10)+$K10 -> 1 | O10: 1 | P10: 1 | Q10: 1 | R10: 0
A11: 8 | B11: Długość przecięcia Obszarów Chronionego Krajobrazu [km] | C11: 38.87 | D11: 27.94 | E11: 32.82 | F11: 32.18 | G11: 30.47 | H11: v | I11: 27.94 | J11: 38.87 | K11: 1 | L11: 0 | M11: Lin. malejąca | N11: =(C11-$I11)*($L11-$K11)/($J11-$I11)+$K11 -> 0 | O11: =(D11-$I11)*($L11-$K11)/($J11-$I11)+$K11 -> 1 | P11: =(E11-$I11)*($L11-$K11)/($J11-$I11)+$K11 -> 0.5535224154 | Q11: =(F11-$I11)*($L11-$K11)/($J11-$I11)+$K11 -> 0.6120768527 | R11: =(G11-$I11)*($L11-$K11)/($J11-$I11)+$K11 -> 0.7685269899
A12: 9 | B12: Długość przecięcia obszarów Natura 2000: SOO+OSO [km] | C12: 12.7 | D12: 9.82 | E12: 9.82 | F12: 9.82 | G12: 15.47 | H12: v | I12: 9.82 | J12: 15.47 | K12: 1 | L12: 0 | M12: Lin. malejąca | N12: =(C12-$I12)*($L12-$K12)/($J12-$I12)+$K12 -> 0.4902654867 | O12: =(D12-$I12)*($L12-$K12)/($J12-$I12)+$K12 -> 1 | P12: =(E12-$I12)*($L12-$K12)/($J12-$I12)+$K12 -> 1 | Q12: =(F12-$I12)*($L12-$K12)/($J12-$I12)+$K12 -> 1 | R12: =(G12-$I12)*($L12-$K12)/($J12-$I12)+$K12 -> 0
A13: 10 | B13: Długość przecięcia korytarzy migracji ptaków [km] | C13: 20.22 | D13: 17.59 | E13: 17.59 | F13: 17.59 | G13: 20.37 | H13: v | I13: 17.59 | J13: 20.37 | K13: 1 | L13: 0 | M13: Lin. malejąca | N13: 0.05395683453 | O13: 1 | P13: 1 | Q13: 1 | R13: 0
A14: 11 | B14: Powierzchnia obszarów wodno-błotnych i bagiennych w korytarzu ≤ 800 m [ha] | C14: 101.36 | D14: 83.07 | E14: 139.68 | F14: 143.79 | G14: 253.31 | H14: v | I14: 83.07 | J14: 253.31 | K14: 1 | L14: 0 | M14: Lin. malejąca | N14: 0.8925634398 | O14: 1 | P14: 0.6674694549 | Q14: 0.6433270677 | R14: 0
A15: 12 | B15: Długość całkowita linii [km] | C15: 131.38 | D15: 115.45 | E15: 134.09 | F15: 138.52 | G15: 100.92 | H15: v | I15: 100.92 | J15: 138.52 | K15: 1 | L15: 0 | M15: Lin. malejąca | N15: 0.189893617 | O15: 0.6135638298 | P15: 0.1178191489 | Q15: 0 | R15: 1
A16: 13 | B16: Długość linii przebiegających w korytarzach DK, ekspresowych i autostrad [km] | C16: 15.071 | D16: 8.19 | E16: 31.964 | F16: 11.64 | G16: 0 | H16: v | I16: 0 | J16: 31.964 | K16: 0 | L16: 1 | M16: Lin. rosnąca | N16: 0.4714991866 | O16: 0.256225754 | P16: 1 | Q16: 0.3641596796 | R16: 0
A17: 14 | B17: Bezpieczeństwo dostaw energii [ekspercka w skali 0-1] | C17: 1 | D17: 1 | E17: 1 | F17: 0 | G17: 0 | H17: v | I17: 0 | J17: 1 | K17: 0 | L17: 1 | M17: Lin. rosnąca | N17: =(C17-$I17)*($L17-$K17)/($J17-$I17)+$K17 -> 1 | O17: =(D17-$I17)*($L17-$K17)/($J17-$I17)+$K17 -> 1 | P17: =(E17-$I17)*($L17-$K17)/($J17-$I17)+$K17 -> 1 | Q17: =(F17-$I17)*($L17-$K17)/($J17-$I17)+$K17 -> 0 | R17: =(G17-$I17)*($L17-$K17)/($J17-$I17)+$K17 -> 0
A18: 15 | B18: Długość linii zgodna z obowiązującym PZPWM [km] | C18: 131.38 | D18: 55.63 | E18: 10.19 | F18: 1.76 | G18: 7.4 | H18: v | I18: 1.76 | J18: 131.38 | K18: 0 | L18: 1 | M18: Lin. rosnąca | N18: 1 | O18: 0.4155994445 | P18: 0.06503625984 | Q18: 0 | R18: 0.04351180373
A19: 16 | B19: Długość linii zgodna z dokumentami planistycznymi gmin [km] (studium lub MPZP) | C19: 24.62 | D19: 15.53 | E19: 13.92 | F19: 12.97 | G19: 27.28 | H19: v | I19: 12.97 | J19: 27.28 | K19: 0 | L19: 1 | M19: Lin. rosnąca | N19: 0.8141160028 | O19: 0.178895877 | P19: 0.06638714186 | Q19: 0 | R19: 1
A20: 17 | B20: Pow. obszarów planowanych pod budownictwo mieszkaniowe w korytarzu 70 m [ha] | C20: 68.4213 | D20: 69.6723 | E20: 42.759 | F20: 65.5834 | G20: 110.8546 | H20: v | I20: 42.759 | J20: 110.8546 | K20: 1 | L20: 0 | M20: Lin. malejąca | N20: =(C20-$I20)*($L20-$K20)/($J20-$I20)+$K20 -> 0.6231430518 | O20: =(D20-$I20)*($L20-$K20)/($J20-$I20)+$K20 -> 0.6047718208 | P20: =(E20-$I20)*($L20-$K20)/($J20-$I20)+$K20 -> 1 | Q20: =(F20-$I20)*($L20-$K20)/($J20-$I20)+$K20 -> 0.6648182849 | R20: =(G20-$I20)*($L20-$K20)/($J20-$I20)+$K20 -> 0
A21: 18 | B21: Pow. obszarów planowanych pod budownictwo mieszkaniowe w korytarzu 35-100 m [ha] | C21: 205.6307 | D21: 189.5764 | E21: 143.8853 | F21: 198.6177 | G21: 215.2685 | H21: v | I21: 143.8853 | J21: 215.2685 | K21: 1 | L21: 0 | M21: Lin. malejąca | N21: 0.1350149615 | O21: 0.3599180199 | P21: 1 | Q21: 0.2332593663 | R21: 0
A22: 19 | B22: Pow. obszarów planowanych pod budownictwo mieszkaniowe w korytarzu 100-400 m [ha] | C22: 1358.2624 | D22: 1291.7915 | E22: 1022.8101 | F22: 1351.8244 | G22: 1300.6695 | H22: v | I22: 1022.8101 | J22: 1358.2624 | K22: 1 | L22: 0 | M22: Lin. malejąca | N22: 0 | O22: 0.1981530608 | P22: 1 | Q22: 0.01919199839 | R22: 0.171687301
A23: 20 | B23: Szacunkowy koszt budowy linii [MPLN] | C23: 469 | D23: 469 | E23: 469 | F23: 516 | G23: 699 | H23: v | I23: 469 | J23: 699 | K23: 1 | L23: 0 | M23: Lin. malejąca | N23: 1 | O23: 1 | P23: 1 | Q23: 0.7956521739 | R23: 0
A24: 21 | B24: Szacunkowy koszt inwestora związany z przebudową linii istniejących [MPLN] | C24: 0 | D24: 0 | E24: 0 | F24: 2 | G24: 110 | H24: v | I24: 0 | J24: 110 | K24: 1 | L24: 0 | M24: Lin. malejąca | N24: 1 | O24: 1 | P24: 1 | Q24: 0.9818181818 | R24: 0

Sheet Wagi ankiety śr
B1: Wagi z ankiet uczestników GR | C1: Średnia dla sąsiadów war. PZPWM (10 ankiet) | D1: Średnia dla sąsiadów war. "korytarzowych" (10 ankiet) | E1: Średnia dla pozostałych (Żaden z poprz.) (4 ankiety) | F1: Średnia społeczeństwo (22 ankiety)
B2: Wariant | C2: 1 | D2: 2 | E2: 3 | F2: 123
A3: 1 | B3: Kryteria środowiska społecznego | C3: 52.5 | D3: 17 | E3: 63.75 | F3: 38.86363636
A4: 2 | B4: Kryteria środowiska przyrodniczego | C4: 15.5 | D4: 18 | E4: 15 | F4: 16.36363636
A5: 3 | B5: Kryteria techniczne i funkcjonalne | C5: 9 | D5: 11 | E5: 2.5 | F5: 8.863636364
A6: 4 | B6: Kryteria planistyczne | C6: 21 | D6: 47 | E6: 18.75 | F6: 32.04545455
A7: 5 | B7: Kryteria ekonomiczno-finansowe | C7: 2 | D7: 7 | E7: 0 | F7: 3.863636364
A8: 1 | B8: Liczba budynków mieszkalnych w korytarzu 70 m [n] | C8: 8.9 | D8: 3.6 | E8: 10 | F8: 6.772727273
A9: 2 | B9: Liczba budynków mieszkalnych w pasie 35-100 m [n] | C9: 9.8 | D9: 3.7 | E9: 10 | F9: 7.045454545
A10: 3 | B10: Liczba budynków mieszkalnych w pasie 100-200 m [n] | C10: 9.1 | D10: 3.4 | E10: 10 | F10: 6.636363636
A11: 4 | B11: Liczba budynków mieszkalnych w pasie 200-400 m [n] | C11: 7.3 | D11: 2.5 | E11: 10 | F11: 5.636363636
A12: 5 | B12: Liczba budynków użyteczności publicznej 0-400m [n] | C12: 5.2 | D12: 2.9 | E12: 7.5 | F12: 4.227272727
A13: 6 | B13: Zbliżenia do budynków wpisanych do rejestru zabytków 0-100m [n] | C13: 1.3 | D13: 2 | E13: 5 | F13: 1.954545455
A14: 7 | B14: Długość przecięcia parków krajobrazowych [km] | C14: 2 | D14: 1.7 | E14: 0 | F14: 1.409090909
A15: 8 | B15: Długość przecięcia Obszarów Chronionego Krajobrazu [km] | C15: 4.3 | D15: 8.5 | E15: 0 | F15: 5.090909091
A16: 9 | B16: Długość przecięcia obszarów Natura 2000: SOO+OSO [km] | C16: 3.1 | D16: 1.7 | E16: 2.5 | F16: 2.181818182
A17: 10 | B17: Długość przecięcia korytarzy migracji ptaków [km] | C17: 6.9 | D17: 8.5 | E17: 7.5 | F17: 7.772727273 | H17: SPOŁECZNE | I17: SĄSIEDZI W1 i W2
A18: 11 | B18: Powierzchnia obszarów wodno-błotnych i bagiennych w korytarzu ≤ 800 m [ha] | C18: 7.8 | D18: 8.3 | E18: 7.5 | F18: 7.863636364 | H18: PRZYRODNICZE | I18: SĄSIEDZI W3 i W4
A19: 12 | B19: Długość całkowita linii [km] | C19: 1.7 | D19: 8.7 | E19: 0 | F19: 4.409090909 | H19: TECH-FUN | I19: POZOSTALI
A20: 13 | B20: Długość linii przebiegających w korytarzach DK, ekspresowych i autostrad [km] | C20: 7.6 | D20: 1.6 | E20: 7.5 | F20: 5.045454545 | H20: PLANISTYCZNE | I20: ŚREDNIO
A21: 14 | B21: Bezpieczeństwo dostaw energii [ekspercka w skali 0-1] | C21: 1.444444444 | D21: 0.4 | E21: 0 | F21: 0.7142857143 | H21: EKONOM-FIN
A22: 15 | B22: Długość linii zgodna z obowiązującym PZPWM [km] | C22: 1.9 | D22: 9 | E22: 0 | F22: 4.5
A23: 16 | B23: Długość linii zgodna z dokumentami planistycznymi gmin [km] (studium lub MPZP) | C23: 5.8 | D23: 3.5 | E23: 5 | F23: 4.454545455
A24: 17 | B24: Pow. obszarów planowanych pod budownictwo mieszkaniowe w korytarzu 70 m [ha] | C24: 8.4 | D24: 3 | E24: 10 | F24: 6.090909091
A25: 18 | B25: Pow. obszarów planowanych pod budownictwo mieszkaniowe w korytarzu 35-100 m [ha] | C25: 8.3 | D25: 2.7 | E25: 10 | F25: 5.909090909
A26: 19 | B26: Pow. obszarów planowanych pod budownictwo mieszkaniowe w korytarzu 100-400 m [ha] | C26: 7.7 | D26: 2.3 | E26: 10 | F26: 5.545454545
A27: 20 | B27: Szacunkowy koszt budowy linii [MPLN] | C27: 1.1 | D27: 8.4 | E27: 0 | F27: 4.136363636
A28: 21 | B28: Szacunkowy koszt inwestora związany z przebudową linii istniejących [MPLN] | C28: 1.8 | D28: 2.8 | E28: 0 | F28: 1.909090909

Sheet Wagi transform
B1: SPOŁECZEŃSTWO
B2: WARIANT 1 I 2 | D2: WARIANT 3 I 4 | F2: ŻADEN Z POPRZ. | H2: ŚREDNIO
A3: GRUPY KRYTERIÓW WYBORU WARIANTU LINII 400 kV KOZ-OLT | B3: Wagi grup | C3: Liczebność grup | D3: Wagi grup | E3: Liczebność grup | F3: Wagi grup | G3: Liczebność grup | H3: Wagi grup | I3: Liczebność grup
A4: Kryteria środowiska społecznego | B4: ='Wagi ankiety śr'!C3 -> 52.5 | C4: 8 | D4: ='Wagi ankiety śr'!D3 -> 17 | E4: 8 | F4: ='Wagi ankiety śr'!E3 -> 63.75 | G4: 8 | H4: ='Wagi ankiety śr'!F3 -> 38.86363636 | I4: 8
A5: Kryteria środowiska przyrodniczego | B5: ='Wagi ankiety śr'!C4 -> 15.5 | C5: 3 | D5: ='Wagi ankiety śr'!D4 -> 18 | E5: 3 | F5: ='Wagi ankiety śr'!E4 -> 15 | G5: 3 | H5: ='Wagi ankiety śr'!F4 -> 16.36363636 | I5: 3
A6: Kryteria techniczne i funkcjonalne | B6: ='Wagi ankiety śr'!C5 -> 9 | C6: 3 | D6: ='Wagi ankiety śr'!D5 -> 11 | E6: 3 | F6: ='Wagi ankiety śr'!E5 -> 2.5 | G6: 3 | H6: ='Wagi ankiety śr'!F5 -> 8.863636364 | I6: 3
A7: Kryteria planistyczne | B7: ='Wagi ankiety śr'!C6 -> 21 | C7: 5 | D7: ='Wagi ankiety śr'!D6 -> 47 | E7: 5 | F7: ='Wagi ankiety śr'!E6 -> 18.75 | G7: 5 | H7: ='Wagi ankiety śr'!F6 -> 32.04545455 | I7: 5
A8: Kryteria ekonomiczno-finansowe | B8: ='Wagi ankiety śr'!C7 -> 2 | C8: 2 | D8: ='Wagi ankiety śr'!D7 -> 7 | E8: 2 | F8: ='Wagi ankiety śr'!E7 -> 0 | G8: 2 | H8: ='Wagi ankiety śr'!F7 -> 3.863636364 | I8: 2
A9: Suma wag grup kryteriów (100) | B9: =SUM(B4:B8) -> 100 | D9: =SUM(D4:D8) -> 100 | F9: =SUM(F4:F8) -> 100 | H9: =SUM(H4:H8) -> 100
K10: WAGI TRANSFORMOWANE
A11: KRYTERIA WYBORU WARIANTU LINII 400 kV KOZ-OLT | B11: Wagi kryteriów | C11: Wagi transform. | D11: Wagi kryteriów | E11: Wagi transform. | F11: Wagi kryteriów | G11: Wagi transform. | H11: Wagi kryteriów | I11: Wagi transform. | J11: NR KR. | K11: W1 i W2 | L11: W3 i W4 | M11: INNE | N11: ŚREDNIO
A12: Kryteria środowiska społecznego (0-10) Waga grupy > | B12: =B4 -> 52.5 | D12: =D4 -> 17 | F12: =F4 -> 63.75 | H12: =H4 -> 38.86363636 | J12: 1 | K12: =C13 -> 9.754697286 | L12: =E13 -> 2.16254417 | M12: =G13 -> 12.14285714 | N12: =I13 -> 6.788607055
A13: ='Macierz źr do obl'!B4 -> Liczba budynków mieszkalnych w korytarzu 70 m [n] | B13: ='Wagi ankiety śr'!C8 -> 8.9 | C13: =B$12*B13/B$21 -> 9.754697286 | D13: ='Wagi ankiety śr'!D8 -> 3.6 | E13: =D$12*D13/D$21 -> 2.16254417 | F13: ='Wagi ankiety śr'!E8 -> 10 | G13: =F$12*F13/F$21 -> 12.14285714 | H13: ='Wagi ankiety śr'!F8 -> 6.772727273 | I13: =H$12*H13/H$21 -> 6.788607055 | J13: 2 | K13: =C14 -> 10.74112735 | L13: =E14 -> 2.222614841 | M13: =G14 -> 12.14285714 | N13: 7.061973782
A14: ='Macierz źr do obl'!B5 -> Liczba budynków mieszkalnych w pasie 35-100 m [n] | B14: ='Wagi ankiety śr'!C9 -> 9.8 | C14: 10.74112735 | D14: ='Wagi ankiety śr'!D9 -> 3.7 | E14: 2.222614841 | F14: ='Wagi ankiety śr'!E9 -> 10 | G14: 12.14285714 | H14: ='Wagi ankiety śr'!F9 -> 7.045454545 | I14: 7.061973782 | J14: 3 | K14: 9.973903967 | L14: 2.042402827 | M14: 12.14285714 | N14: 6.651923692
A15: ='Macierz źr do obl'!B6 -> Liczba budynków mieszkalnych w pasie 100-200 m [n] | B15: ='Wagi ankiety śr'!C10 -> 9.1 | C15: 9.973903967 | D15: ='Wagi ankiety śr'!D10 -> 3.4 | E15: 2.042402827 | F15: ='Wagi ankiety śr'!E10 -> 10 | G15: 12.14285714 | H15: ='Wagi ankiety śr'!F10 -> 6.636363636 | I15: 6.651923692 | J15: 4 | K15: 8.001043841 | L15: 1.501766784 | M15: 12.14285714 | N15: 5.649579026
A16: ='Macierz źr do obl'!B7 -> Liczba budynków mieszkalnych w pasie 200-400 m [n] | B16: ='Wagi ankiety śr'!C11 -> 7.3 | C16: 8.001043841 | D16: ='Wagi ankiety śr'!D11 -> 2.5 | E16: 1.501766784 | F16: ='Wagi ankiety śr'!E11 -> 10 | G16: 12.14285714 | H16: ='Wagi ankiety śr'!F11 -> 5.636363636 | I16: 5.649579026 | J16: 5 | K16: 5.699373695 | L16: 1.74204947 | M16: 9.107142857 | N16: 4.237184269
A17: ='Macierz źr do obl'!B8 -> Liczba budynków użyteczności publicznej 0-400m [n] | B17: ='Wagi ankiety śr'!C12 -> 5.2 | C17: 5.699373695 | D17: ='Wagi ankiety śr'!D12 -> 2.9 | E17: 1.74204947 | F17: ='Wagi ankiety śr'!E12 -> 7.5 | G17: 9.107142857 | H17: ='Wagi ankiety śr'!F12 -> 4.227272727 | I17: 4.237184269 | J17: 6 | K17: 1.424843424 | L17: 1.201413428 | M17: 6.071428571 | N17: 1.959128211
A18: ='Macierz źr do obl'!B9 -> Zbliżenia do budynków wpisanych do rejestru zabytków 0-100m [n] | B18: ='Wagi ankiety śr'!C13 -> 1.3 | C18: 1.424843424 | D18: ='Wagi ankiety śr'!D13 -> 2 | E18: 1.201413428 | F18: ='Wagi ankiety śr'!E13 -> 5 | G18: 6.071428571 | H18: ='Wagi ankiety śr'!F13 -> 1.954545455 | I18: 1.959128211 | J18: 7 | K18: 2.192066806 | L18: 1.021201413 | M18: 0 | N18: 1.412394756
A19: Długość przecięcia parków krajobrazowych [km] | B19: ='Wagi ankiety śr'!C14 -> 2 | C19: =B$12*B19/B$21 -> 2.192066806 | D19: ='Wagi ankiety śr'!D14 -> 1.7 | E19: =D$12*D19/D$21 -> 1.021201413 | F19: ='Wagi ankiety śr'!E14 -> 0 | G19: =F$12*F19/F$21 -> 0 | H19: ='Wagi ankiety śr'!F14 -> 1.409090909 | I19: =H$12*H19/H$21 -> 1.412394756 | J19: 8 | K19: 4.712943633 | L19: 5.106007067 | M19: 0 | N19: 5.102845572
A20: Długość przecięcia Obszarów Chronionego Krajobrazu [km] | B20: ='Wagi ankiety śr'!C15 -> 4.3 | C20: =B$12*B20/B$21 -> 4.712943633 | D20: ='Wagi ankiety śr'!D15 -> 8.5 | E20: =D$12*D20/D$21 -> 5.106007067 | F20: ='Wagi ankiety śr'!E15 -> 0 | G20: =F$12*F20/F$21 -> 0 | H20: ='Wagi ankiety śr'!F15 -> 5.090909091 | I20: =H$12*H20/H$21 -> 5.102845572 | J20: 9 | K20: =C23 -> 2.699438202 | L20: =E23 -> 1.654054054 | M20: =G23 -> 2.142857143 | N20: =I23 -> 2.003710575
A21: Suma wag kryteriów w grupie: | B21: =SUM(B13:B20) -> 47.9 | C21: 52.5 | D21: 28.3 | E21: 17 | F21: 52.5 | G21: 63.75 | H21: 38.77272727 | I21: 38.86363636 | J21: 10 | K21: =C24 -> 6.008426966 | L21: =E24 -> 8.27027027 | M21: =G24 -> 6.428571429 | N21: =I24 -> 7.138218924
A22: Kryteria środowiska przyrodniczego (0-10) Waga grupy > | B22: =B5 -> 15.5 | D22: =D5 -> 18 | F22: =F5 -> 15 | H22: =H5 -> 16.36363636 | J22: 11 | K22: =C25 -> 6.792134831 | L22: =E25 -> 8.075675676 | M22: =G25 -> 6.428571429 | N22: =I25 -> 7.221706865
A23: ='Macierz źr do obl'!B12 -> Długość przecięcia obszarów Natura 2000: SOO+OSO [km] | B23: ='Wagi ankiety śr'!C16 -> 3.1 | C23: =B$22*B23/B$26 -> 2.699438202 | D23: ='Wagi ankiety śr'!D16 -> 1.7 | E23: =D$22*D23/D$26 -> 1.654054054 | F23: ='Wagi ankiety śr'!E16 -> 2.5 | G23: =F$22*F23/F$26 -> 2.142857143 | H23: ='Wagi ankiety śr'!F16 -> 2.181818182 | I23: =H$22*H23/H$26 -> 2.003710575 | J23: 12 | K23: =C28 -> 1.423991727 | L23: =E28 -> 8.943925234 | M23: =G28 -> 0 | N23: =I28 -> 3.84317311
A24: ='Macierz źr do obl'!B13 -> Długość przecięcia korytarzy migracji ptaków [km] | B24: ='Wagi ankiety śr'!C17 -> 6.9 | C24: =B$22*B24/B$26 -> 6.008426966 | D24: ='Wagi ankiety śr'!D17 -> 8.5 | E24: =D$22*D24/D$26 -> 8.27027027 | F24: ='Wagi ankiety śr'!E17 -> 7.5 | G24: =F$22*F24/F$26 -> 6.428571429 | H24: ='Wagi ankiety śr'!F17 -> 7.772727273 | I24: =H$22*H24/H$26 -> 7.138218924 | J24: 13 | K24: =C29 -> 6.366080662 | L24: =E29 -> 1.644859813 | M24: =G29 -> 2.5 | N24: =I29 -> 4.397857889
A25: ='Macierz źr do obl'!B14 -> Powierzchnia obszarów wodno-błotnych i bagiennych w korytarzu ≤ 800 m [ha] | B25: ='Wagi ankiety śr'!C18 -> 7.8 | C25: =B$22*B25/B$26 -> 6.792134831 | D25: ='Wagi ankiety śr'!D18 -> 8.3 | E25: =D$22*D25/D$26 -> 8.075675676 | F25: ='Wagi ankiety śr'!E18 -> 7.5 | G25: =F$22*F25/F$26 -> 6.428571429 | H25: ='Wagi ankiety śr'!F18 -> 7.863636364 | I25: =H$22*H25/H$26 -> 7.221706865 | J25: 14 | K25: 1.209927611 | L25: 0.4112149533 | M25: 0 | N25: 0.622605364
A26: Suma wag kryteriów w grupie: | B26: =SUM(B23:B25) -> 17.8 | C26: 15.5 | D26: 18.5 | E26: 18 | F26: 17.5 | G26: 15 | H26: 17.81818182 | I26: 16.36363636 | J26: 15 | K26: =C33 -> 1.242990654 | L26: =E33 -> 20.63414634 | M26: =G33 -> 0 | N26: =I33 -> 5.441680961
A27: Kryteria techniczne i funkcjonalne (0-10) Waga grupy > | B27: =B6 -> 9 | D27: =D6 -> 11 | F27: =F6 -> 2.5 | H27: =H6 -> 8.863636364 | J27: 16 | K27: =C34 -> 3.794392523 | L27: =E34 -> 8.024390244 | M27: =G34 -> 2.678571429 | N27: =I34 -> 5.386714486
A28: ='Macierz źr do obl'!B15 -> Długość całkowita linii [km] | B28: ='Wagi ankiety śr'!C19 -> 1.7 | C28: =B$27*B28/B$31 -> 1.423991727 | D28: ='Wagi ankiety śr'!D19 -> 8.7 | E28: =D$27*D28/D$31 -> 8.943925234 | F28: ='Wagi ankiety śr'!E19 -> 0 | G28: =F$27*F28/F$31 -> 0 | H28: ='Wagi ankiety śr'!F19 -> 4.409090909 | I28: =H$27*H28/H$31 -> 3.84317311 | J28: 17 | K28: 5.495327103 | L28: 6.87804878 | M28: 5.357142857 | N28: 7.365507563
A29: ='Macierz źr do obl'!B16 -> Długość linii przebiegających w korytarzach DK, ekspresowych i autostrad [km] | B29: ='Wagi ankiety śr'!C20 -> 7.6 | C29: =B$27*B29/B$31 -> 6.366080662 | D29: ='Wagi ankiety śr'!D20 -> 1.6 | E29: =D$27*D29/D$31 -> 1.644859813 | F29: ='Wagi ankiety śr'!E20 -> 7.5 | G29: =F$27*F29/F$31 -> 2.5 | H29: ='Wagi ankiety śr'!F20 -> 5.045454545 | I29: =H$27*H29/H$31 -> 4.397857889 | J29: 18 | K29: 5.429906542 | L29: 6.190243902 | M29: 5.357142857 | N29: 7.145641665
A30: ='Macierz źr do obl'!B17 -> Bezpieczeństwo dostaw energii [ekspercka w skali 0-1] | B30: ='Wagi ankiety śr'!C21 -> 1.444444444 | C30: =B$27*B30/B$31 -> 1.209927611 | D30: ='Wagi ankiety śr'!D21 -> 0.4 | E30: =D$27*D30/D$31 -> 0.4112149533 | F30: ='Wagi ankiety śr'!E21 -> 0 | G30: =F$27*F30/F$31 -> 0 | H30: ='Wagi ankiety śr'!F21 -> 0.7142857143 | I30: =H$27*H30/H$31 -> 0.622605364 | J30: 19 | K30: 5.037383178 | L30: 5.273170732 | M30: 5.357142857 | N30: 6.705909871
A31: Suma wag kryteriów w grupie: | B31: =SUM(B28:B30) -> 10.74444444 | C31: 9 | D31: 10.7 | E31: 11 | F31: 7.5 | G31: 2.5 | H31: 10.16883117 | I31: 8.863636364 | J31: 20 | K31: =C40 -> 0.7586206897 | L31: =E40 -> 5.25 | M31: =G40 -> 0 | N31: =I40 -> 2.64354067
A32: Kryteria planistyczne (0-10) Waga grupy > | B32: =B7 -> 21 | D32: =D7 -> 47 | F32: =F7 -> 18.75 | H32: =H7 -> 32.04545455 | J32: 21 | K32: =C41 -> 1.24137931 | L32: =E41 -> 1.75 | M32: =G41 -> 0 | N32: =I41 -> 1.220095694
A33: ='Macierz źr do obl'!B18 -> Długość linii zgodna z obowiązującym PZPWM [km] | B33: ='Wagi ankiety śr'!C22 -> 1.9 | C33: =B$32*B33/B$38 -> 1.242990654 | D33: ='Wagi ankiety śr'!D22 -> 9 | E33: =D$32*D33/D$38 -> 20.63414634 | F33: ='Wagi ankiety śr'!E22 -> 0 | G33: =F$32*F33/F$38 -> 0 | H33: ='Wagi ankiety śr'!F22 -> 4.5 | I33: =H$32*H33/H$38 -> 5.441680961
A34: ='Macierz źr do obl'!B19 -> Długość linii zgodna z dokumentami planistycznymi gmin [km] (studium lub MPZP) | B34: ='Wagi ankiety śr'!C23 -> 5.8 | C34: =B$32*B34/B$38 -> 3.794392523 | D34: ='Wagi ankiety śr'!D23 -> 3.5 | E34: =D$32*D34/D$38 -> 8.024390244 | F34: ='Wagi ankiety śr'!E23 -> 5 | G34: =F$32*F34/F$38 -> 2.678571429 | H34: ='Wagi ankiety śr'!F23 -> 4.454545455 | I34: =H$32*H34/H$38 -> 5.386714486
A35: ='Macierz źr do obl'!B20 -> Pow. obszarów planowanych pod budownictwo mieszkaniowe w korytarzu 70 m [ha] | B35: ='Wagi ankiety śr'!C24 -> 8.4 | C35: 5.495327103 | D35: ='Wagi ankiety śr'!D24 -> 3 | E35: 6.87804878 | F35: ='Wagi ankiety śr'!E24 -> 10 | G35: 5.357142857 | H35: ='Wagi ankiety śr'!F24 -> 6.090909091 | I35: 7.365507563
A36: ='Macierz źr do obl'!B21 -> Pow. obszarów planowanych pod budownictwo mieszkaniowe w korytarzu 35-100 m [ha] | B36: ='Wagi ankiety śr'!C25 -> 8.3 | C36: 5.429906542 | D36: ='Wagi ankiety śr'!D25 -> 2.7 | E36: 6.190243902 | F36: ='Wagi ankiety śr'!E25 -> 10 | G36: 5.357142857 | H36: ='Wagi ankiety śr'!F25 -> 5.909090909 | I36: 7.145641665
A37: ='Macierz źr do obl'!B22 -> Pow. obszarów planowanych pod budownictwo mieszkaniowe w korytarzu 100-400 m [ha] | B37: ='Wagi ankiety śr'!C26 -> 7.7 | C37: 5.037383178 | D37: ='Wagi ankiety śr'!D26 -> 2.3 | E37: 5.273170732 | F37: ='Wagi ankiety śr'!E26 -> 10 | G37: 5.357142857 | H37: ='Wagi ankiety śr'!F26 -> 5.545454545 | I37: 6.705909871
A38: Suma wag kryteriów w grupie: | B38: =SUM(B33:B37) -> 32.1 | C38: 21 | D38: 20.5 | E38: 47 | F38: 35 | G38: 18.75 | H38: 26.5 | I38: 32.04545455
A39: Kryteria ekonomiczno-finansowe (0-10) Waga grupy > | B39: =B8 -> 2 | D39: =D8 -> 7 | F39: =F8 -> 0 | H39: =H8 -> 3.863636364
A40: ='Macierz źr do obl'!B23 -> Szacunkowy koszt budowy linii [MPLN] | B40: ='Wagi ankiety śr'!C27 -> 1.1 | C40: =B$39*B40/B$42 -> 0.7586206897 | D40: ='Wagi ankiety śr'!D27 -> 8.4 | E40: =D$39*D40/D$42 -> 5.25 | F40: ='Wagi ankiety śr'!E27 -> 0 | G40: =IF(F$42=0, 0, F$39*F40/F$42) -> 0 | H40: ='Wagi ankiety śr'!F27 -> 4.136363636 | I40: =H$39*H40/H$42 -> 2.64354067
A41: ='Macierz źr do obl'!B24 -> Szacunkowy koszt inwestora związany z przebudową linii istniejących [MPLN] | B41: ='Wagi ankiety śr'!C28 -> 1.8 | C41: =B$39*B41/B$42 -> 1.24137931 | D41: ='Wagi ankiety śr'!D28 -> 2.8 | E41: =D$39*D41/D$42 -> 1.75 | F41: ='Wagi ankiety śr'!E28 -> 0 | G41: =IF(F$42=0, 0, F$39*F41/F$42) -> 0 | H41: ='Wagi ankiety śr'!F28 -> 1.909090909 | I41: =H$39*H41/H$42 -> 1.220095694
A42: Suma wag kryteriów w grupie: | B42: =SUM(B40:B41) -> 2.9 | C42: 2 | D42: 11.2 | E42: 7 | F42: 0 | G42: 0 | H42: 6.045454545 | I42: 3.863636364

Sheet SPOŁ W1 i W2
B3: KRYTERIA | C3: ='Macierz źr do obl'!C3 -> WARIANT 1 PZPWM | D3: ='Macierz źr do obl'!D3 -> WARIANT 2 WYKONAWCY | E3: ='Macierz źr do obl'!E3 -> WARIANT 3 DK50 i A2 | F3: ='Macierz źr do obl'!F3 -> WARIANT 4 DK50 i 400kV | G3: ='Macierz źr do obl'!G3 -> WARIANT 5 HISTORYCZNY
A4: 1 | B4: ='Macierz źr do obl'!B4 -> Liczba budynków mieszkalnych w korytarzu 70 m [n] | C4: ='Macierz źr do obl'!N4*'Wagi transform'!$K12 -> 9.412427206 | D4: ='Macierz źr do obl'!O4*'Wagi transform'!$K12 -> 9.754697286 | E4: ='Macierz źr do obl'!P4*'Wagi transform'!$K12 -> 9.669129766 | F4: ='Macierz źr do obl'!Q4*'Wagi transform'!$K12 -> 7.701076805 | G4: ='Macierz źr do obl'!R4*'Wagi transform'!$K12 -> 0
A5: 2 | B5: ='Macierz źr do obl'!B5 -> Liczba budynków mieszkalnych w pasie 35-100 m [n] | C5: ='Macierz źr do obl'!N5*'Wagi transform'!$K13 -> 5.023213785 | D5: ='Macierz źr do obl'!O5*'Wagi transform'!$K13 -> 9.084535569 | E5: ='Macierz źr do obl'!P5*'Wagi transform'!$K13 -> 10.74112735 | F5: ='Macierz źr do obl'!Q5*'Wagi transform'!$K13 -> 9.992989125 | G5: ='Macierz źr do obl'!R5*'Wagi transform'!$K13 -> 0
A6: 3 | B6: ='Macierz źr do obl'!B6 -> Liczba budynków mieszkalnych w pasie 100-200 m [n] | C6: ='Macierz źr do obl'!N6*'Wagi transform'!$K14 -> 5.699373695 | D6: ='Macierz źr do obl'!O6*'Wagi transform'!$K14 -> 8.113691719 | E6: ='Macierz źr do obl'!P6*'Wagi transform'!$K14 -> 9.973903967 | F6: ='Macierz źr do obl'!Q6*'Wagi transform'!$K14 -> 8.113691719 | G6: ='Macierz źr do obl'!R6*'Wagi transform'!$K14 -> 0
A7: 4 | B7: ='Macierz źr do obl'!B7 -> Liczba budynków mieszkalnych w pasie 200-400 m [n] | C7: ='Macierz źr do obl'!N7*'Wagi transform'!$K15 -> 1.314934782 | D7: ='Macierz źr do obl'!O7*'Wagi transform'!$K15 -> 4.680276342 | E7: ='Macierz źr do obl'!P7*'Wagi transform'!$K15 -> 8.001043841 | F7: ='Macierz źr do obl'!Q7*'Wagi transform'!$K15 -> 5.460322399 | G7: ='Macierz źr do obl'!R7*'Wagi transform'!$K15 -> 0
A8: 5 | B8: ='Macierz źr do obl'!B8 -> Liczba budynków użyteczności publicznej 0-400m [n] | C8: ='Macierz źr do obl'!N8*'Wagi transform'!$K16 -> 4.499505549 | D8: ='Macierz źr do obl'!O8*'Wagi transform'!$K16 -> 5.474398418 | E8: ='Macierz źr do obl'!P8*'Wagi transform'!$K16 -> 5.699373695 | F8: ='Macierz źr do obl'!Q8*'Wagi transform'!$K16 -> 5.099439622 | G8: ='Macierz źr do obl'!R8*'Wagi transform'!$K16 -> 0
A9: 6 | B9: ='Macierz źr do obl'!B9 -> Zbliżenia do budynków wpisanych do rejestru zabytków 0-100m [n] | C9: ='Macierz źr do obl'!N9*'Wagi transform'!$K17 -> 0 | D9: ='Macierz źr do obl'!O9*'Wagi transform'!$K17 -> 1.424843424 | E9: ='Macierz źr do obl'!P9*'Wagi transform'!$K17 -> 1.424843424 | F9: ='Macierz źr do obl'!Q9*'Wagi transform'!$K17 -> 0 | G9: ='Macierz źr do obl'!R9*'Wagi transform'!$K17 -> 1.424843424
A10: 7 | B10: ='Macierz źr do obl'!B10 -> Długość przecięcia parków krajobrazowych [km] | C10: ='Macierz źr do obl'!N10*'Wagi transform'!$K18 -> 2.192066806 | D10: ='Macierz źr do obl'!O10*'Wagi transform'!$K18 -> 2.192066806 | E10: ='Macierz źr do obl'!P10*'Wagi transform'!$K18 -> 2.192066806 | F10: ='Macierz źr do obl'!Q10*'Wagi transform'!$K18 -> 2.192066806 | G10: ='Macierz źr do obl'!R10*'Wagi transform'!$K18 -> 0
A11: 8 | B11: ='Macierz źr do obl'!B11 -> Długość przecięcia Obszarów Chronionego Krajobrazu [km] | C11: ='Macierz źr do obl'!N11*'Wagi transform'!$K19 -> 0 | D11: ='Macierz źr do obl'!O11*'Wagi transform'!$K19 -> 4.712943633 | E11: ='Macierz źr do obl'!P11*'Wagi transform'!$K19 -> 2.608719943 | F11: ='Macierz źr do obl'!Q11*'Wagi transform'!$K19 -> 2.884683706 | G11: ='Macierz źr do obl'!R11*'Wagi transform'!$K19 -> 3.622024384
A12: 9 | B12: ='Macierz źr do obl'!B12 -> Długość przecięcia obszarów Natura 2000: SOO+OSO [km] | C12: ='Macierz źr do obl'!N12*'Wagi transform'!$K20 -> 1.323441384 | D12: ='Macierz źr do obl'!O12*'Wagi transform'!$K20 -> 2.699438202 | E12: ='Macierz źr do obl'!P12*'Wagi transform'!$K20 -> 2.699438202 | F12: ='Macierz źr do obl'!Q12*'Wagi transform'!$K20 -> 2.699438202 | G12: ='Macierz źr do obl'!R12*'Wagi transform'!$K20 -> 0
A13: 10 | B13: ='Macierz źr do obl'!B13 -> Długość przecięcia korytarzy migracji ptaków [km] | C13: ='Macierz źr do obl'!N13*'Wagi transform'!$K21 -> 0.3241956996 | D13: ='Macierz źr do obl'!O13*'Wagi transform'!$K21 -> 6.008426966 | E13: ='Macierz źr do obl'!P13*'Wagi transform'!$K21 -> 6.008426966 | F13: ='Macierz źr do obl'!Q13*'Wagi transform'!$K21 -> 6.008426966 | G13: ='Macierz źr do obl'!R13*'Wagi transform'!$K21 -> 0
A14: 11 | B14: ='Macierz źr do obl'!B14 -> Powierzchnia obszarów wodno-błotnych i bagiennych w korytarzu ≤ 800 m [ha] | C14: ='Macierz źr do obl'!N14*'Wagi transform'!$K22 -> 6.062411229 | D14: ='Macierz źr do obl'!O14*'Wagi transform'!$K22 -> 6.792134831 | E14: ='Macierz źr do obl'!P14*'Wagi transform'!$K22 -> 4.533542533 | F14: ='Macierz źr do obl'!Q14*'Wagi transform'!$K22 -> 4.369564184 | G14: ='Macierz źr do obl'!R14*'Wagi transform'!$K22 -> 0
A15: 12 | B15: ='Macierz źr do obl'!B15 -> Długość całkowita linii [km] | C15: ='Macierz źr do obl'!N15*'Wagi transform'!$K23 -> 0.2704069396 | D15: ='Macierz źr do obl'!O15*'Wagi transform'!$K23 -> 0.8737098176 | E15: ='Macierz źr do obl'!P15*'Wagi transform'!$K23 -> 0.1677734934 | F15: ='Macierz źr do obl'!Q15*'Wagi transform'!$K23 -> 0 | G15: ='Macierz źr do obl'!R15*'Wagi transform'!$K23 -> 1.423991727
A16: 13 | B16: ='Macierz źr do obl'!B16 -> Długość linii przebiegających w korytarzach DK, ekspresowych i autostrad [km] | C16: ='Macierz źr do obl'!N16*'Wagi transform'!$K24 -> 3.001601854 | D16: ='Macierz źr do obl'!O16*'Wagi transform'!$K24 -> 1.631153817 | E16: ='Macierz źr do obl'!P16*'Wagi transform'!$K24 -> 6.366080662 | F16: ='Macierz źr do obl'!Q16*'Wagi transform'!$K24 -> 2.318269894 | G16: ='Macierz źr do obl'!R16*'Wagi transform'!$K24 -> 0
A17: 14 | B17: ='Macierz źr do obl'!B17 -> Bezpieczeństwo dostaw energii [ekspercka w skali 0-1] | C17: ='Macierz źr do obl'!N17*'Wagi transform'!$K25 -> 1.209927611 | D17: ='Macierz źr do obl'!O17*'Wagi transform'!$K25 -> 1.209927611 | E17: ='Macierz źr do obl'!P17*'Wagi transform'!$K25 -> 1.209927611 | F17: ='Macierz źr do obl'!Q17*'Wagi transform'!$K25 -> 0 | G17: ='Macierz źr do obl'!R17*'Wagi transform'!$K25 -> 0
A18: 15 | B18: ='Macierz źr do obl'!B18 -> Długość linii zgodna z obowiązującym PZPWM [km] | C18: ='Macierz źr do obl'!N18*'Wagi transform'!$K26 -> 1.242990654 | D18: ='Macierz źr do obl'!O18*'Wagi transform'!$K26 -> 0.5165862254 | E18: ='Macierz źr do obl'!P18*'Wagi transform'!$K26 -> 0.08083946316 | F18: ='Macierz źr do obl'!Q18*'Wagi transform'!$K26 -> 0 | G18: ='Macierz źr do obl'!R18*'Wagi transform'!$K26 -> 0.05408476539
A19: 16 | B19: ='Macierz źr do obl'!B19 -> Długość linii zgodna z dokumentami planistycznymi gmin [km] (studium lub MPZP) | C19: ='Macierz źr do obl'!N19*'Wagi transform'!$K27 -> 3.089075674 | D19: ='Macierz źr do obl'!O19*'Wagi transform'!$K27 -> 0.6788011782 | E19: ='Macierz źr do obl'!P19*'Wagi transform'!$K27 -> 0.2518988747 | F19: ='Macierz źr do obl'!Q19*'Wagi transform'!$K27 -> 0 | G19: ='Macierz źr do obl'!R19*'Wagi transform'!$K27 -> 3.794392523
A20: 17 | B20: ='Macierz źr do obl'!B20 -> Pow. obszarów planowanych pod budownictwo mieszkaniowe w korytarzu 70 m [ha] | C20: ='Macierz źr do obl'!N20*'Wagi transform'!$K28 -> 3.424374902 | D20: ='Macierz źr do obl'!O20*'Wagi transform'!$K28 -> 3.323418978 | E20: ='Macierz źr do obl'!P20*'Wagi transform'!$K28 -> 5.495327103 | F20: ='Macierz źr do obl'!Q20*'Wagi transform'!$K28 -> 3.653393939 | G20: ='Macierz źr do obl'!R20*'Wagi transform'!$K28 -> 0
A21: 18 | B21: ='Macierz źr do obl'!B21 -> Pow. obszarów planowanych pod budownictwo mieszkaniowe w korytarzu 35-100 m [ha] | C21: ='Macierz źr do obl'!N21*'Wagi transform'!$K29 -> 0.7331186227 | D21: ='Macierz źr do obl'!O21*'Wagi transform'!$K29 -> 1.954321211 | E21: ='Macierz źr do obl'!P21*'Wagi transform'!$K29 -> 5.429906542 | F21: ='Macierz źr do obl'!Q21*'Wagi transform'!$K29 -> 1.266576559 | G21: ='Macierz źr do obl'!R21*'Wagi transform'!$K29 -> 0
A22: 19 | B22: ='Macierz źr do obl'!B22 -> Pow. obszarów planowanych pod budownictwo mieszkaniowe w korytarzu 100-400 m [ha] | C22: ='Macierz źr do obl'!N22*'Wagi transform'!$K30 -> 0 | D22: ='Macierz źr do obl'!O22*'Wagi transform'!$K30 -> 0.9981728951 | E22: ='Macierz źr do obl'!P22*'Wagi transform'!$K30 -> 5.037383178 | F22: ='Macierz źr do obl'!Q22*'Wagi transform'!$K30 -> 0.09667744981 | G22: ='Macierz źr do obl'!R22*'Wagi transform'!$K30 -> 0.8648547218
A23: 20 | B23: ='Macierz źr do obl'!B23 -> Szacunkowy koszt budowy linii [MPLN] | C23: ='Macierz źr do obl'!N23*'Wagi transform'!$K31 -> 0.7586206897 | D23: ='Macierz źr do obl'!O23*'Wagi transform'!$K31 -> 0.7586206897 | E23: ='Macierz źr do obl'!P23*'Wagi transform'!$K31 -> 0.7586206897 | F23: ='Macierz źr do obl'!Q23*'Wagi transform'!$K31 -> 0.6035982009 | G23: ='Macierz źr do obl'!R23*'Wagi transform'!$K31 -> 0
A24: 21 | B24: ='Macierz źr do obl'!B24 -> Szacunkowy koszt inwestora związany z przebudową linii istniejących [MPLN] | C24: ='Macierz źr do obl'!N24*'Wagi transform'!$K32 -> 1.24137931 | D24: ='Macierz źr do obl'!O24*'Wagi transform'!$K32 -> 1.24137931 | E24: ='Macierz źr do obl'!P24*'Wagi transform'!$K32 -> 1.24137931 | F24: ='Macierz źr do obl'!Q24*'Wagi transform'!$K32 -> 1.218808777 | G24: ='Macierz źr do obl'!R24*'Wagi transform'!$K32 -> 0
B25: SUMA WAŻONA | C25: =SUM(C4:C24) -> 50.82306639 | D25: =SUM(D4:D24) -> 74.12354493 | E25: =SUM(E4:E24) -> 89.59075342 | F25: =SUM(F4:F24) -> 63.67902436 | G25: =SUM(G4:G24) -> 11.18419155

Sheet SPOŁ W3 i W4
B3: KRYTERIA | C3: ='Macierz źr do obl'!C3 -> WARIANT 1 PZPWM | D3: ='Macierz źr do obl'!D3 -> WARIANT 2 WYKONAWCY | E3: ='Macierz źr do obl'!E3 -> WARIANT 3 DK50 i A2 | F3: ='Macierz źr do obl'!F3 -> WARIANT 4 DK50 i 400kV | G3: ='Macierz źr do obl'!G3 -> WARIANT 5 HISTORYCZNY
A4: 1 | B4: ='Macierz źr do obl'!B4 -> Liczba budynków mieszkalnych w korytarzu 70 m [n] | C4: ='Macierz źr do obl'!N4*'Wagi transform'!$L12 -> 2.086665427 | D4: ='Macierz źr do obl'!O4*'Wagi transform'!$L12 -> 2.16254417 | E4: ='Macierz źr do obl'!P4*'Wagi transform'!$L12 -> 2.143574484 | F4: ='Macierz źr do obl'!Q4*'Wagi transform'!$L12 -> 1.707271713 | G4: ='Macierz źr do obl'!R4*'Wagi transform'!$L12 -> 0
A5: 2 | B5: ='Macierz źr do obl'!B5 -> Liczba budynków mieszkalnych w pasie 35-100 m [n] | C5: ='Macierz źr do obl'!N5*'Wagi transform'!$L13 -> 1.039431816 | D5: ='Macierz źr do obl'!O5*'Wagi transform'!$L13 -> 1.879823497 | E5: ='Macierz źr do obl'!P5*'Wagi transform'!$L13 -> 2.222614841 | F5: ='Macierz źr do obl'!Q5*'Wagi transform'!$L13 -> 2.067805847 | G5: ='Macierz źr do obl'!R5*'Wagi transform'!$L13 -> 0
A6: 3 | B6: ='Macierz źr do obl'!B6 -> Liczba budynków mieszkalnych w pasie 100-200 m [n] | C6: ='Macierz źr do obl'!N6*'Wagi transform'!$L14 -> 1.16708733 | D6: ='Macierz źr do obl'!O6*'Wagi transform'!$L14 -> 1.66147849 | E6: ='Macierz źr do obl'!P6*'Wagi transform'!$L14 -> 2.042402827 | F6: ='Macierz źr do obl'!Q6*'Wagi transform'!$L14 -> 1.66147849 | G6: ='Macierz źr do obl'!R6*'Wagi transform'!$L14 -> 0
A7: 4 | B7: ='Macierz źr do obl'!B7 -> Liczba budynków mieszkalnych w pasie 200-400 m [n] | C7: ='Macierz źr do obl'!N7*'Wagi transform'!$L15 -> 0.2468084688 | D7: ='Macierz źr do obl'!O7*'Wagi transform'!$L15 -> 0.878470821 | E7: ='Macierz źr do obl'!P7*'Wagi transform'!$L15 -> 1.501766784 | F7: ='Macierz źr do obl'!Q7*'Wagi transform'!$L15 -> 1.024882624 | G7: ='Macierz źr do obl'!R7*'Wagi transform'!$L15 -> 0
A8: 5 | B8: ='Macierz źr do obl'!B8 -> Liczba budynków użyteczności publicznej 0-400m [n] | C8: ='Macierz źr do obl'!N8*'Wagi transform'!$L16 -> 1.375302213 | D8: ='Macierz źr do obl'!O8*'Wagi transform'!$L16 -> 1.673284359 | E8: ='Macierz źr do obl'!P8*'Wagi transform'!$L16 -> 1.74204947 | F8: ='Macierz źr do obl'!Q8*'Wagi transform'!$L16 -> 1.558675842 | G8: ='Macierz źr do obl'!R8*'Wagi transform'!$L16 -> 0
A9: 6 | B9: ='Macierz źr do obl'!B9 -> Zbliżenia do budynków wpisanych do rejestru zabytków 0-100m [n] | C9: ='Macierz źr do obl'!N9*'Wagi transform'!$L17 -> 0 | D9: ='Macierz źr do obl'!O9*'Wagi transform'!$L17 -> 1.201413428 | E9: ='Macierz źr do obl'!P9*'Wagi transform'!$L17 -> 1.201413428 | F9: ='Macierz źr do obl'!Q9*'Wagi transform'!$L17 -> 0 | G9: ='Macierz źr do obl'!R9*'Wagi transform'!$L17 -> 1.201413428
A10: 7 | B10: ='Macierz źr do obl'!B10 -> Długość przecięcia parków krajobrazowych [km] | C10: ='Macierz źr do obl'!N10*'Wagi transform'!$L18 -> 1.021201413 | D10: ='Macierz źr do obl'!O10*'Wagi transform'!$L18 -> 1.021201413 | E10: ='Macierz źr do obl'!P10*'Wagi transform'!$L18 -> 1.021201413 | F10: ='Macierz źr do obl'!Q10*'Wagi transform'!$L18 -> 1.021201413 | G10: ='Macierz źr do obl'!R10*'Wagi transform'!$L18 -> 0
A11: 8 | B11: ='Macierz źr do obl'!B11 -> Długość przecięcia Obszarów Chronionego Krajobrazu [km] | C11: ='Macierz źr do obl'!N11*'Wagi transform'!$L19 -> 0 | D11: ='Macierz źr do obl'!O11*'Wagi transform'!$L19 -> 5.106007067 | E11: ='Macierz źr do obl'!P11*'Wagi transform'!$L19 -> 2.826289365 | F11: ='Macierz źr do obl'!Q11*'Wagi transform'!$L19 -> 3.125268736 | G11: ='Macierz źr do obl'!R11*'Wagi transform'!$L19 -> 3.924104242
A12: 9 | B12: ='Macierz źr do obl'!B12 -> Długość przecięcia obszarów Natura 2000: SOO+OSO [km] | C12: ='Macierz źr do obl'!N12*'Wagi transform'!$L20 -> 0.8109256159 | D12: ='Macierz źr do obl'!O12*'Wagi transform'!$L20 -> 1.654054054 | E12: ='Macierz źr do obl'!P12*'Wagi transform'!$L20 -> 1.654054054 | F12: ='Macierz źr do obl'!Q12*'Wagi transform'!$L20 -> 1.654054054 | G12: ='Macierz źr do obl'!R12*'Wagi transform'!$L20 -> 0
A13: 10 | B13: ='Macierz źr do obl'!B13 -> Długość przecięcia korytarzy migracji ptaków [km] | C13: ='Macierz źr do obl'!N13*'Wagi transform'!$L21 -> 0.4462376045 | D13: ='Macierz źr do obl'!O13*'Wagi transform'!$L21 -> 8.27027027 | E13: ='Macierz źr do obl'!P13*'Wagi transform'!$L21 -> 8.27027027 | F13: ='Macierz źr do obl'!Q13*'Wagi transform'!$L21 -> 8.27027027 | G13: ='Macierz źr do obl'!R13*'Wagi transform'!$L21 -> 0
A14: 11 | B14: ='Macierz źr do obl'!B14 -> Powierzchnia obszarów wodno-błotnych i bagiennych w korytarzu ≤ 800 m [ha] | C14: ='Macierz źr do obl'!N14*'Wagi transform'!$L22 -> 7.20805286 | D14: ='Macierz źr do obl'!O14*'Wagi transform'!$L22 -> 8.075675676 | E14: ='Macierz źr do obl'!P14*'Wagi transform'!$L22 -> 5.390266841 | F14: ='Macierz źr do obl'!Q14*'Wagi transform'!$L22 -> 5.195300752 | G14: ='Macierz źr do obl'!R14*'Wagi transform'!$L22 -> 0
A15: 12 | B15: ='Macierz źr do obl'!B15 -> Długość całkowita linii [km] | C15: ='Macierz źr do obl'!N15*'Wagi transform'!$L23 -> 1.698394313 | D15: ='Macierz źr do obl'!O15*'Wagi transform'!$L23 -> 5.48766902 | E15: ='Macierz źr do obl'!P15*'Wagi transform'!$L23 -> 1.053765659 | F15: ='Macierz źr do obl'!Q15*'Wagi transform'!$L23 -> 0 | G15: ='Macierz źr do obl'!R15*'Wagi transform'!$L23 -> 8.943925234
A16: 13 | B16: ='Macierz źr do obl'!B16 -> Długość linii przebiegających w korytarzach DK, ekspresowych i autostrad [km] | C16: ='Macierz źr do obl'!N16*'Wagi transform'!$L24 -> 0.7755500639 | D16: ='Macierz źr do obl'!O16*'Wagi transform'!$L24 -> 0.4214554458 | E16: ='Macierz źr do obl'!P16*'Wagi transform'!$L24 -> 1.644859813 | F16: ='Macierz źr do obl'!Q16*'Wagi transform'!$L24 -> 0.5989916226 | G16: ='Macierz źr do obl'!R16*'Wagi transform'!$L24 -> 0
A17: 14 | B17: ='Macierz źr do obl'!B17 -> Bezpieczeństwo dostaw energii [ekspercka w skali 0-1] | C17: ='Macierz źr do obl'!N17*'Wagi transform'!$L25 -> 0.4112149533 | D17: ='Macierz źr do obl'!O17*'Wagi transform'!$L25 -> 0.4112149533 | E17: ='Macierz źr do obl'!P17*'Wagi transform'!$L25 -> 0.4112149533 | F17: ='Macierz źr do obl'!Q17*'Wagi transform'!$L25 -> 0 | G17: ='Macierz źr do obl'!R17*'Wagi transform'!$L25 -> 0
A18: 15 | B18: ='Macierz źr do obl'!B18 -> Długość linii zgodna z obowiązującym PZPWM [km] | C18: ='Macierz źr do obl'!N18*'Wagi transform'!$L26 -> 20.63414634 | D18: ='Macierz źr do obl'!O18*'Wagi transform'!$L26 -> 8.575539758 | E18: ='Macierz źr do obl'!P18*'Wagi transform'!$L26 -> 1.341967703 | F18: ='Macierz źr do obl'!Q18*'Wagi transform'!$L26 -> 0 | G18: ='Macierz źr do obl'!R18*'Wagi transform'!$L26 -> 0.8978289258
A19: 16 | B19: ='Macierz źr do obl'!B19 -> Długość linii zgodna z dokumentami planistycznymi gmin [km] (studium lub MPZP) | C19: ='Macierz źr do obl'!N19*'Wagi transform'!$L27 -> 6.53278451 | D19: ='Macierz źr do obl'!O19*'Wagi transform'!$L27 -> 1.43553033 | E19: ='Macierz źr do obl'!P19*'Wagi transform'!$L27 -> 0.5327163335 | F19: ='Macierz źr do obl'!Q19*'Wagi transform'!$L27 -> 0 | G19: ='Macierz źr do obl'!R19*'Wagi transform'!$L27 -> 8.024390244
A20: 17 | B20: ='Macierz źr do obl'!B20 -> Pow. obszarów planowanych pod budownictwo mieszkaniowe w korytarzu 70 m [ha] | C20: ='Macierz źr do obl'!N20*'Wagi transform'!$L28 -> 4.286008308 | D20: ='Macierz źr do obl'!O20*'Wagi transform'!$L28 -> 4.159650084 | E20: ='Macierz źr do obl'!P20*'Wagi transform'!$L28 -> 6.87804878 | F20: ='Macierz źr do obl'!Q20*'Wagi transform'!$L28 -> 4.572652594 | G20: ='Macierz źr do obl'!R20*'Wagi transform'!$L28 -> 0
A21: 18 | B21: ='Macierz źr do obl'!B21 -> Pow. obszarów planowanych pod budownictwo mieszkaniowe w korytarzu 35-100 m [ha] | C21: ='Macierz źr do obl'!N21*'Wagi transform'!$L29 -> 0.8357755422 | D21: ='Macierz źr do obl'!O21*'Wagi transform'!$L29 -> 2.227980328 | E21: ='Macierz źr do obl'!P21*'Wagi transform'!$L29 -> 6.190243902 | F21: ='Macierz źr do obl'!Q21*'Wagi transform'!$L29 -> 1.44393237 | G21: ='Macierz źr do obl'!R21*'Wagi transform'!$L29 -> 0
A22: 19 | B22: ='Macierz źr do obl'!B22 -> Pow. obszarów planowanych pod budownictwo mieszkaniowe w korytarzu 100-400 m [ha] | C22: ='Macierz źr do obl'!N22*'Wagi transform'!$L30 -> 0 | D22: ='Macierz źr do obl'!O22*'Wagi transform'!$L30 -> 1.044894921 | E22: ='Macierz źr do obl'!P22*'Wagi transform'!$L30 -> 5.273170732 | F22: ='Macierz źr do obl'!Q22*'Wagi transform'!$L30 -> 0.1012026842 | G22: ='Macierz źr do obl'!R22*'Wagi transform'!$L30 -> 0.9053364506
A23: 20 | B23: ='Macierz źr do obl'!B23 -> Szacunkowy koszt budowy linii [MPLN] | C23: ='Macierz źr do obl'!N23*'Wagi transform'!$L31 -> 5.25 | D23: ='Macierz źr do obl'!O23*'Wagi transform'!$L31 -> 5.25 | E23: ='Macierz źr do obl'!P23*'Wagi transform'!$L31 -> 5.25 | F23: ='Macierz źr do obl'!Q23*'Wagi transform'!$L31 -> 4.177173913 | G23: ='Macierz źr do obl'!R23*'Wagi transform'!$L31 -> 0
A24: 21 | B24: ='Macierz źr do obl'!B24 -> Szacunkowy koszt inwestora związany z przebudową linii istniejących [MPLN] | C24: ='Macierz źr do obl'!N24*'Wagi transform'!$L32 -> 1.75 | D24: ='Macierz źr do obl'!O24*'Wagi transform'!$L32 -> 1.75 | E24: ='Macierz źr do obl'!P24*'Wagi transform'!$L32 -> 1.75 | F24: ='Macierz źr do obl'!Q24*'Wagi transform'!$L32 -> 1.718181818 | G24: ='Macierz źr do obl'!R24*'Wagi transform'!$L32 -> 0
B25: SUMA WAŻONA | C25: =SUM(C4:C24) -> 57.57558678 | D25: =SUM(D4:D24) -> 64.34815809 | E25: =SUM(E4:E24) -> 60.34189165 | F25: =SUM(F4:F24) -> 39.89834474 | G25: =SUM(G4:G24) -> 23.89699852

Sheet INNE
B3: KRYTERIA | C3: ='Macierz źr do obl'!C3 -> WARIANT 1 PZPWM | D3: ='Macierz źr do obl'!D3 -> WARIANT 2 WYKONAWCY | E3: ='Macierz źr do obl'!E3 -> WARIANT 3 DK50 i A2 | F3: ='Macierz źr do obl'!F3 -> WARIANT 4 DK50 i 400kV | G3: ='Macierz źr do obl'!G3 -> WARIANT 5 HISTORYCZNY
A4: 1 | B4: ='Macierz źr do obl'!B4 -> Liczba budynków mieszkalnych w korytarzu 70 m [n] | C4: ='Macierz źr do obl'!N4*'Wagi transform'!$M12 -> 11.71679198 | D4: ='Macierz źr do obl'!O4*'Wagi transform'!$M12 -> 12.14285714 | E4: ='Macierz źr do obl'!P4*'Wagi transform'!$M12 -> 12.03634085 | F4: ='Macierz źr do obl'!Q4*'Wagi transform'!$M12 -> 9.586466165 | G4: ='Macierz źr do obl'!R4*'Wagi transform'!$M12 -> 0
A5: 2 | B5: ='Macierz źr do obl'!B5 -> Liczba budynków mieszkalnych w pasie 35-100 m [n] | C5: ='Macierz źr do obl'!N5*'Wagi transform'!$M13 -> 5.678749112 | D5: ='Macierz źr do obl'!O5*'Wagi transform'!$M13 -> 10.27007818 | E5: ='Macierz źr do obl'!P5*'Wagi transform'!$M13 -> 12.14285714 | F5: ='Macierz źr do obl'!Q5*'Wagi transform'!$M13 -> 11.297086 | G5: ='Macierz źr do obl'!R5*'Wagi transform'!$M13 -> 0
A6: 3 | B6: ='Macierz źr do obl'!B6 -> Liczba budynków mieszkalnych w pasie 100-200 m [n] | C6: ='Macierz źr do obl'!N6*'Wagi transform'!$M14 -> 6.93877551 | D6: ='Macierz źr do obl'!O6*'Wagi transform'!$M14 -> 9.878117914 | E6: ='Macierz źr do obl'!P6*'Wagi transform'!$M14 -> 12.14285714 | F6: ='Macierz źr do obl'!Q6*'Wagi transform'!$M14 -> 9.878117914 | G6: ='Macierz źr do obl'!R6*'Wagi transform'!$M14 -> 0
A7: 4 | B7: ='Macierz źr do obl'!B7 -> Liczba budynków mieszkalnych w pasie 200-400 m [n] | C7: ='Macierz źr do obl'!N7*'Wagi transform'!$M15 -> 1.995622762 | D7: ='Macierz źr do obl'!O7*'Wagi transform'!$M15 -> 7.103064067 | E7: ='Macierz źr do obl'!P7*'Wagi transform'!$M15 -> 12.14285714 | F7: ='Macierz źr do obl'!Q7*'Wagi transform'!$M15 -> 8.286908078 | G7: ='Macierz źr do obl'!R7*'Wagi transform'!$M15 -> 0
A8: 5 | B8: ='Macierz źr do obl'!B8 -> Liczba budynków użyteczności publicznej 0-400m [n] | C8: ='Macierz źr do obl'!N8*'Wagi transform'!$M16 -> 7.189849624 | D8: ='Macierz źr do obl'!O8*'Wagi transform'!$M16 -> 8.747650376 | E8: ='Macierz źr do obl'!P8*'Wagi transform'!$M16 -> 9.107142857 | F8: ='Macierz źr do obl'!Q8*'Wagi transform'!$M16 -> 8.148496241 | G8: ='Macierz źr do obl'!R8*'Wagi transform'!$M16 -> 0
A9: 6 | B9: ='Macierz źr do obl'!B9 -> Zbliżenia do budynków wpisanych do rejestru zabytków 0-100m [n] | C9: ='Macierz źr do obl'!N9*'Wagi transform'!$M17 -> 0 | D9: ='Macierz źr do obl'!O9*'Wagi transform'!$M17 -> 6.071428571 | E9: ='Macierz źr do obl'!P9*'Wagi transform'!$M17 -> 6.071428571 | F9: ='Macierz źr do obl'!Q9*'Wagi transform'!$M17 -> 0 | G9: ='Macierz źr do obl'!R9*'Wagi transform'!$M17 -> 6.071428571
A10: 7 | B10: ='Macierz źr do obl'!B10 -> Długość przecięcia parków krajobrazowych [km] | C10: ='Macierz źr do obl'!N10*'Wagi transform'!$M18 -> 0 | D10: ='Macierz źr do obl'!O10*'Wagi transform'!$M18 -> 0 | E10: ='Macierz źr do obl'!P10*'Wagi transform'!$M18 -> 0 | F10: ='Macierz źr do obl'!Q10*'Wagi transform'!$M18 -> 0 | G10: ='Macierz źr do obl'!R10*'Wagi transform'!$M18 -> 0
A11: 8 | B11: ='Macierz źr do obl'!B11 -> Długość przecięcia Obszarów Chronionego Krajobrazu [km] | C11: ='Macierz źr do obl'!N11*'Wagi transform'!$M19 -> 0 | D11: ='Macierz źr do obl'!O11*'Wagi transform'!$M19 -> 0 | E11: ='Macierz źr do obl'!P11*'Wagi transform'!$M19 -> 0 | F11: ='Macierz źr do obl'!Q11*'Wagi transform'!$M19 -> 0 | G11: ='Macierz źr do obl'!R11*'Wagi transform'!$M19 -> 0
A12: 9 | B12: ='Macierz źr do obl'!B12 -> Długość przecięcia obszarów Natura 2000: SOO+OSO [km] | C12: ='Macierz źr do obl'!N12*'Wagi transform'!$M20 -> 1.0505689 | D12: ='Macierz źr do obl'!O12*'Wagi transform'!$M20 -> 2.142857143 | E12: ='Macierz źr do obl'!P12*'Wagi transform'!$M20 -> 2.142857143 | F12: ='Macierz źr do obl'!Q12*'Wagi transform'!$M20 -> 2.142857143 | G12: ='Macierz źr do obl'!R12*'Wagi transform'!$M20 -> 0
A13: 10 | B13: ='Macierz źr do obl'!B13 -> Długość przecięcia korytarzy migracji ptaków [km] | C13: ='Macierz źr do obl'!N13*'Wagi transform'!$M21 -> 0.3468653649 | D13: ='Macierz źr do obl'!O13*'Wagi transform'!$M21 -> 6.428571429 | E13: ='Macierz źr do obl'!P13*'Wagi transform'!$M21 -> 6.428571429 | F13: ='Macierz źr do obl'!Q13*'Wagi transform'!$M21 -> 6.428571429 | G13: ='Macierz źr do obl'!R13*'Wagi transform'!$M21 -> 0
A14: 11 | B14: ='Macierz źr do obl'!B14 -> Powierzchnia obszarów wodno-błotnych i bagiennych w korytarzu ≤ 800 m [ha] | C14: ='Macierz źr do obl'!N14*'Wagi transform'!$M22 -> 5.737907828 | D14: ='Macierz źr do obl'!O14*'Wagi transform'!$M22 -> 6.428571429 | E14: ='Macierz źr do obl'!P14*'Wagi transform'!$M22 -> 4.290875067 | F14: ='Macierz źr do obl'!Q14*'Wagi transform'!$M22 -> 4.135674006 | G14: ='Macierz źr do obl'!R14*'Wagi transform'!$M22 -> 0
A15: 12 | B15: ='Macierz źr do obl'!B15 -> Długość całkowita linii [km] | C15: ='Macierz źr do obl'!N15*'Wagi transform'!$M23 -> 0 | D15: ='Macierz źr do obl'!O15*'Wagi transform'!$M23 -> 0 | E15: ='Macierz źr do obl'!P15*'Wagi transform'!$M23 -> 0 | F15: ='Macierz źr do obl'!Q15*'Wagi transform'!$M23 -> 0 | G15: ='Macierz źr do obl'!R15*'Wagi transform'!$M23 -> 0
A16: 13 | B16: ='Macierz źr do obl'!B16 -> Długość linii przebiegających w korytarzach DK, ekspresowych i autostrad [km] | C16: ='Macierz źr do obl'!N16*'Wagi transform'!$M24 -> 1.178747966 | D16: ='Macierz źr do obl'!O16*'Wagi transform'!$M24 -> 0.6405643849 | E16: ='Macierz źr do obl'!P16*'Wagi transform'!$M24 -> 2.5 | F16: ='Macierz źr do obl'!Q16*'Wagi transform'!$M24 -> 0.9103991991 | G16: ='Macierz źr do obl'!R16*'Wagi transform'!$M24 -> 0
A17: 14 | B17: ='Macierz źr do obl'!B17 -> Bezpieczeństwo dostaw energii [ekspercka w skali 0-1] | C17: ='Macierz źr do obl'!N17*'Wagi transform'!$M25 -> 0 | D17: ='Macierz źr do obl'!O17*'Wagi transform'!$M25 -> 0 | E17: ='Macierz źr do obl'!P17*'Wagi transform'!$M25 -> 0 | F17: ='Macierz źr do obl'!Q17*'Wagi transform'!$M25 -> 0 | G17: ='Macierz źr do obl'!R17*'Wagi transform'!$M25 -> 0
A18: 15 | B18: ='Macierz źr do obl'!B18 -> Długość linii zgodna z obowiązującym PZPWM [km] | C18: ='Macierz źr do obl'!N18*'Wagi transform'!$M26 -> 0 | D18: ='Macierz źr do obl'!O18*'Wagi transform'!$M26 -> 0 | E18: ='Macierz źr do obl'!P18*'Wagi transform'!$M26 -> 0 | F18: ='Macierz źr do obl'!Q18*'Wagi transform'!$M26 -> 0 | G18: ='Macierz źr do obl'!R18*'Wagi transform'!$M26 -> 0
A19: 16 | B19: ='Macierz źr do obl'!B19 -> Długość linii zgodna z dokumentami planistycznymi gmin [km] (studium lub MPZP) | C19: ='Macierz źr do obl'!N19*'Wagi transform'!$M27 -> 2.180667865 | D19: ='Macierz źr do obl'!O19*'Wagi transform'!$M27 -> 0.4791853848 | E19: ='Macierz źr do obl'!P19*'Wagi transform'!$M27 -> 0.1778227014 | F19: ='Macierz źr do obl'!Q19*'Wagi transform'!$M27 -> 0 | G19: ='Macierz źr do obl'!R19*'Wagi transform'!$M27 -> 2.678571429
A20: 17 | B20: ='Macierz źr do obl'!B20 -> Pow. obszarów planowanych pod budownictwo mieszkaniowe w korytarzu 70 m [ha] | C20: ='Macierz źr do obl'!N20*'Wagi transform'!$M28 -> 3.338266349 | D20: ='Macierz źr do obl'!O20*'Wagi transform'!$M28 -> 3.23984904 | E20: ='Macierz źr do obl'!P20*'Wagi transform'!$M28 -> 5.357142857 | F20: ='Macierz źr do obl'!Q20*'Wagi transform'!$M28 -> 3.561526526 | G20: ='Macierz źr do obl'!R20*'Wagi transform'!$M28 -> 0
A21: 18 | B21: ='Macierz źr do obl'!B21 -> Pow. obszarów planowanych pod budownictwo mieszkaniowe w korytarzu 35-100 m [ha] | C21: ='Macierz źr do obl'!N21*'Wagi transform'!$M29 -> 0.7232944366 | D21: ='Macierz źr do obl'!O21*'Wagi transform'!$M29 -> 1.92813225 | E21: ='Macierz źr do obl'!P21*'Wagi transform'!$M29 -> 5.357142857 | F21: ='Macierz źr do obl'!Q21*'Wagi transform'!$M29 -> 1.249603748 | G21: ='Macierz źr do obl'!R21*'Wagi transform'!$M29 -> 0
A22: 19 | B22: ='Macierz źr do obl'!B22 -> Pow. obszarów planowanych pod budownictwo mieszkaniowe w korytarzu 100-400 m [ha] | C22: ='Macierz źr do obl'!N22*'Wagi transform'!$M30 -> 0 | D22: ='Macierz źr do obl'!O22*'Wagi transform'!$M30 -> 1.061534254 | E22: ='Macierz źr do obl'!P22*'Wagi transform'!$M30 -> 5.357142857 | F22: ='Macierz źr do obl'!Q22*'Wagi transform'!$M30 -> 0.1028142771 | G22: ='Macierz źr do obl'!R22*'Wagi transform'!$M30 -> 0.9197533982
A23: 20 | B23: ='Macierz źr do obl'!B23 -> Szacunkowy koszt budowy linii [MPLN] | C23: ='Macierz źr do obl'!N23*'Wagi transform'!$M31 -> 0 | D23: ='Macierz źr do obl'!O23*'Wagi transform'!$M31 -> 0 | E23: ='Macierz źr do obl'!P23*'Wagi transform'!$M31 -> 0 | F23: ='Macierz źr do obl'!Q23*'Wagi transform'!$M31 -> 0 | G23: ='Macierz źr do obl'!R23*'Wagi transform'!$M31 -> 0
A24: 21 | B24: ='Macierz źr do obl'!B24 -> Szacunkowy koszt inwestora związany z przebudową linii istniejących [MPLN] | C24: ='Macierz źr do obl'!N24*'Wagi transform'!$M32 -> 0 | D24: ='Macierz źr do obl'!O24*'Wagi transform'!$M32 -> 0 | E24: ='Macierz źr do obl'!P24*'Wagi transform'!$M32 -> 0 | F24: ='Macierz źr do obl'!Q24*'Wagi transform'!$M32 -> 0 | G24: ='Macierz źr do obl'!R24*'Wagi transform'!$M32 -> 0
B25: SUMA WAŻONA | C25: =SUM(C4:C24) -> 48.0761077 | D25: =SUM(D4:D24) -> 76.56246157 | E25: =SUM(E4:E24) -> 95.25503862 | F25: =SUM(F4:F24) -> 65.72852072 | G25: =SUM(G4:G24) -> 9.669753398

Sheet SPOŁECZEŃSTWO
B3: KRYTERIA | C3: ='Macierz źr do obl'!C3 -> WARIANT 1 PZPWM | D3: ='Macierz źr do obl'!D3 -> WARIANT 2 WYKONAWCY | E3: ='Macierz źr do obl'!E3 -> WARIANT 3 DK50 i A2 | F3: ='Macierz źr do obl'!F3 -> WARIANT 4 DK50 i 400kV | G3: ='Macierz źr do obl'!G3 -> WARIANT 5 HISTORYCZNY
A4: 1 | B4: ='Macierz źr do obl'!B4 -> Liczba budynków mieszkalnych w korytarzu 70 m [n] | C4: ='Macierz źr do obl'!N4*'Wagi transform'!$N12 -> 6.550410317 | D4: ='Macierz źr do obl'!O4*'Wagi transform'!$N12 -> 6.788607055 | E4: ='Macierz źr do obl'!P4*'Wagi transform'!$N12 -> 6.729057871 | F4: ='Macierz źr do obl'!Q4*'Wagi transform'!$N12 -> 5.359426623 | G4: ='Macierz źr do obl'!R4*'Wagi transform'!$N12 -> 0 | H4: BM 70 M
A5: 2 | B5: ='Macierz źr do obl'!B5 -> Liczba budynków mieszkalnych w pasie 35-100 m [n] | C5: ='Macierz źr do obl'!N5*'Wagi transform'!$N13 -> 3.302614605 | D5: ='Macierz źr do obl'!O5*'Wagi transform'!$N13 -> 5.972813647 | E5: ='Macierz źr do obl'!P5*'Wagi transform'!$N13 -> 7.061973782 | F5: ='Macierz źr do obl'!Q5*'Wagi transform'!$N13 -> 6.570095011 | G5: ='Macierz źr do obl'!R5*'Wagi transform'!$N13 -> 0 | H5: BM 100 M
A6: 3 | B6: ='Macierz źr do obl'!B6 -> Liczba budynków mieszkalnych w pasie 100-200 m [n] | C6: ='Macierz źr do obl'!N6*'Wagi transform'!$N14 -> 3.801099252 | D6: ='Macierz źr do obl'!O6*'Wagi transform'!$N14 -> 5.41128713 | E6: ='Macierz źr do obl'!P6*'Wagi transform'!$N14 -> 6.651923692 | F6: ='Macierz źr do obl'!Q6*'Wagi transform'!$N14 -> 5.41128713 | G6: ='Macierz źr do obl'!R6*'Wagi transform'!$N14 -> 0 | H6: BM 200 M
A7: 4 | B7: ='Macierz źr do obl'!B7 -> Liczba budynków mieszkalnych w pasie 200-400 m [n] | C7: ='Macierz źr do obl'!N7*'Wagi transform'!$N15 -> 0.9284823469 | D7: ='Macierz źr do obl'!O7*'Wagi transform'!$N15 -> 3.304767675 | E7: ='Macierz źr do obl'!P7*'Wagi transform'!$N15 -> 5.649579026 | F7: ='Macierz źr do obl'!Q7*'Wagi transform'!$N15 -> 3.855562288 | G7: ='Macierz źr do obl'!R7*'Wagi transform'!$N15 -> 0 | H7: BM 400 M
A8: 5 | B8: ='Macierz źr do obl'!B8 -> Liczba budynków użyteczności publicznej 0-400m [n] | C8: ='Macierz źr do obl'!N8*'Wagi transform'!$N16 -> 3.345145476 | D8: ='Macierz źr do obl'!O8*'Wagi transform'!$N16 -> 4.069926996 | E8: ='Macierz źr do obl'!P8*'Wagi transform'!$N16 -> 4.237184269 | F8: ='Macierz źr do obl'!Q8*'Wagi transform'!$N16 -> 3.791164873 | G8: ='Macierz źr do obl'!R8*'Wagi transform'!$N16 -> 0 | H8: BUP 400 M
A9: 6 | B9: ='Macierz źr do obl'!B9 -> Zbliżenia do budynków wpisanych do rejestru zabytków 0-100m [n] | C9: ='Macierz źr do obl'!N9*'Wagi transform'!$N17 -> 0 | D9: ='Macierz źr do obl'!O9*'Wagi transform'!$N17 -> 1.959128211 | E9: ='Macierz źr do obl'!P9*'Wagi transform'!$N17 -> 1.959128211 | F9: ='Macierz źr do obl'!Q9*'Wagi transform'!$N17 -> 0 | G9: ='Macierz źr do obl'!R9*'Wagi transform'!$N17 -> 1.959128211 | H9: ZABYTKI
A10: 7 | B10: ='Macierz źr do obl'!B10 -> Długość przecięcia parków krajobrazowych [km] | C10: ='Macierz źr do obl'!N10*'Wagi transform'!$N18 -> 1.412394756 | D10: ='Macierz źr do obl'!O10*'Wagi transform'!$N18 -> 1.412394756 | E10: ='Macierz źr do obl'!P10*'Wagi transform'!$N18 -> 1.412394756 | F10: ='Macierz źr do obl'!Q10*'Wagi transform'!$N18 -> 1.412394756 | G10: ='Macierz źr do obl'!R10*'Wagi transform'!$N18 -> 0 | H10: PARKI KRAJ
A11: 8 | B11: ='Macierz źr do obl'!B11 -> Długość przecięcia Obszarów Chronionego Krajobrazu [km] | C11: ='Macierz źr do obl'!N11*'Wagi transform'!$N19 -> 0 | D11: ='Macierz źr do obl'!O11*'Wagi transform'!$N19 -> 5.102845572 | E11: ='Macierz źr do obl'!P11*'Wagi transform'!$N19 -> 2.824539406 | F11: ='Macierz źr do obl'!Q11*'Wagi transform'!$N19 -> 3.123333657 | G11: ='Macierz źr do obl'!R11*'Wagi transform'!$N19 -> 3.921674547 | H11: OCHK
A12: 9 | B12: ='Macierz źr do obl'!B12 -> Długość przecięcia obszarów Natura 2000: SOO+OSO [km] | C12: ='Macierz źr do obl'!N12*'Wagi transform'!$N20 -> 0.9823501404 | D12: ='Macierz źr do obl'!O12*'Wagi transform'!$N20 -> 2.003710575 | E12: ='Macierz źr do obl'!P12*'Wagi transform'!$N20 -> 2.003710575 | F12: ='Macierz źr do obl'!Q12*'Wagi transform'!$N20 -> 2.003710575 | G12: ='Macierz źr do obl'!R12*'Wagi transform'!$N20 -> 0 | H12: N 2000
A13: 10 | B13: ='Macierz źr do obl'!B13 -> Długość przecięcia korytarzy migracji ptaków [km] | C13: ='Macierz źr do obl'!N13*'Wagi transform'!$N21 -> 0.3851556973 | D13: ='Macierz źr do obl'!O13*'Wagi transform'!$N21 -> 7.138218924 | E13: ='Macierz źr do obl'!P13*'Wagi transform'!$N21 -> 7.138218924 | F13: ='Macierz źr do obl'!Q13*'Wagi transform'!$N21 -> 7.138218924 | G13: ='Macierz źr do obl'!R13*'Wagi transform'!$N21 -> 0 | H13: PTAKI
A14: 11 | B14: ='Macierz źr do obl'!B14 -> Powierzchnia obszarów wodno-błotnych i bagiennych w korytarzu ≤ 800 m [ha] | C14: ='Macierz źr do obl'!N14*'Wagi transform'!$N22 -> 6.445831521 | D14: ='Macierz źr do obl'!O14*'Wagi transform'!$N22 -> 7.221706865 | E14: ='Macierz źr do obl'!P14*'Wagi transform'!$N22 -> 4.820268744 | F14: ='Macierz źr do obl'!Q14*'Wagi transform'!$N22 -> 4.645919501 | G14: ='Macierz źr do obl'!R14*'Wagi transform'!$N22 -> 0 | H14: O W-BŁOT
A15: 12 | B15: ='Macierz źr do obl'!B15 -> Długość całkowita linii [km] | C15: ='Macierz źr do obl'!N15*'Wagi transform'!$N23 -> 0.7297940428 | D15: ='Macierz źr do obl'!O15*'Wagi transform'!$N23 -> 2.358032012 | E15: ='Macierz źr do obl'!P15*'Wagi transform'!$N23 -> 0.4527993851 | F15: ='Macierz źr do obl'!Q15*'Wagi transform'!$N23 -> 0 | G15: ='Macierz źr do obl'!R15*'Wagi transform'!$N23 -> 3.84317311 | H15: DŁ CAŁK
A16: 13 | B16: ='Macierz źr do obl'!B16 -> Długość linii przebiegających w korytarzach DK, ekspresowych i autostrad [km] | C16: ='Macierz źr do obl'!N16*'Wagi transform'!$N24 -> 2.073586417 | D16: ='Macierz źr do obl'!O16*'Wagi transform'!$N24 -> 1.126844454 | E16: ='Macierz źr do obl'!P16*'Wagi transform'!$N24 -> 4.397857889 | F16: ='Macierz źr do obl'!Q16*'Wagi transform'!$N24 -> 1.60152252 | G16: ='Macierz źr do obl'!R16*'Wagi transform'!$N24 -> 0 | H16: DŁ W KOR DK-A
A17: 14 | B17: ='Macierz źr do obl'!B17 -> Bezpieczeństwo dostaw energii [ekspercka w skali 0-1] | C17: ='Macierz źr do obl'!N17*'Wagi transform'!$N25 -> 0.622605364 | D17: ='Macierz źr do obl'!O17*'Wagi transform'!$N25 -> 0.622605364 | E17: ='Macierz źr do obl'!P17*'Wagi transform'!$N25 -> 0.622605364 | F17: ='Macierz źr do obl'!Q17*'Wagi transform'!$N25 -> 0 | G17: ='Macierz źr do obl'!R17*'Wagi transform'!$N25 -> 0 | H17: BEZP DE
A18: 15 | B18: ='Macierz źr do obl'!B18 -> Długość linii zgodna z obowiązującym PZPWM [km] | C18: ='Macierz źr do obl'!N18*'Wagi transform'!$N26 -> 5.441680961 | D18: ='Macierz źr do obl'!O18*'Wagi transform'!$N26 -> 2.261559585 | E18: ='Macierz źr do obl'!P18*'Wagi transform'!$N26 -> 0.3539065769 | F18: ='Macierz źr do obl'!Q18*'Wagi transform'!$N26 -> 0 | G18: ='Macierz źr do obl'!R18*'Wagi transform'!$N26 -> 0.2367773539 | H18: DŁ ZG Z PZPW
A19: 16 | B19: ='Macierz źr do obl'!B19 -> Długość linii zgodna z dokumentami planistycznymi gmin [km] (studium lub MPZP) | C19: ='Macierz źr do obl'!N19*'Wagi transform'!$N27 -> 4.385410466 | D19: ='Macierz źr do obl'!O19*'Wagi transform'!$N27 -> 0.9636610122 | E19: ='Macierz źr do obl'!P19*'Wagi transform'!$N27 -> 0.3576085787 | F19: ='Macierz źr do obl'!Q19*'Wagi transform'!$N27 -> 0 | G19: ='Macierz źr do obl'!R19*'Wagi transform'!$N27 -> 5.386714486 | H19: DŁ ZG Z MPZP
A20: 17 | B20: ='Macierz źr do obl'!B20 -> Pow. obszarów planowanych pod budownictwo mieszkaniowe w korytarzu 70 m [ha] | C20: ='Macierz źr do obl'!N20*'Wagi transform'!$N28 -> 4.589764861 | D20: ='Macierz źr do obl'!O20*'Wagi transform'!$N28 -> 4.45445142 | E20: ='Macierz źr do obl'!P20*'Wagi transform'!$N28 -> 7.365507563 | F20: ='Macierz źr do obl'!Q20*'Wagi transform'!$N28 -> 4.896724105 | G20: ='Macierz źr do obl'!R20*'Wagi transform'!$N28 -> 0 | H20: BPL 70 M
A21: 18 | B21: ='Macierz źr do obl'!B21 -> Pow. obszarów planowanych pod budownictwo mieszkaniowe w korytarzu 35-100 m [ha] | C21: ='Macierz źr do obl'!N21*'Wagi transform'!$N29 -> 0.9647685344 | D21: ='Macierz źr do obl'!O21*'Wagi transform'!$N29 -> 2.571845199 | E21: ='Macierz źr do obl'!P21*'Wagi transform'!$N29 -> 7.145641665 | F21: ='Macierz źr do obl'!Q21*'Wagi transform'!$N29 -> 1.666787847 | G21: ='Macierz źr do obl'!R21*'Wagi transform'!$N29 -> 0 | H21: BPL 100 M
A22: 19 | B22: ='Macierz źr do obl'!B22 -> Pow. obszarów planowanych pod budownictwo mieszkaniowe w korytarzu 100-400 m [ha] | C22: ='Macierz źr do obl'!N22*'Wagi transform'!$N30 -> 0 | D22: ='Macierz źr do obl'!O22*'Wagi transform'!$N30 -> 1.328796566 | E22: ='Macierz źr do obl'!P22*'Wagi transform'!$N30 -> 6.705909871 | F22: ='Macierz źr do obl'!Q22*'Wagi transform'!$N30 -> 0.1286998114 | G22: ='Macierz źr do obl'!R22*'Wagi transform'!$N30 -> 1.151319566 | H22: BPL 400 M
A23: 20 | B23: ='Macierz źr do obl'!B23 -> Szacunkowy koszt budowy linii [MPLN] | C23: ='Macierz źr do obl'!N23*'Wagi transform'!$N31 -> 2.64354067 | D23: ='Macierz źr do obl'!O23*'Wagi transform'!$N31 -> 2.64354067 | E23: ='Macierz źr do obl'!P23*'Wagi transform'!$N31 -> 2.64354067 | F23: ='Macierz źr do obl'!Q23*'Wagi transform'!$N31 -> 2.103338881 | G23: ='Macierz źr do obl'!R23*'Wagi transform'!$N31 -> 0 | H23: KOSZT CAŁK
A24: 21 | B24: ='Macierz źr do obl'!B24 -> Szacunkowy koszt inwestora związany z przebudową linii istniejących [MPLN] | C24: ='Macierz źr do obl'!N24*'Wagi transform'!$N32 -> 1.220095694 | D24: ='Macierz źr do obl'!O24*'Wagi transform'!$N32 -> 1.220095694 | E24: ='Macierz źr do obl'!P24*'Wagi transform'!$N32 -> 1.220095694 | F24: ='Macierz źr do obl'!Q24*'Wagi transform'!$N32 -> 1.197912136 | G24: ='Macierz źr do obl'!R24*'Wagi transform'!$N32 -> 0 | H24: K PRZEBUD
B25: SUMA WAŻONA | C25: =SUM(C4:C24) -> 49.82473112 | D25: =SUM(D4:D24) -> 69.93683938 | E25: =SUM(E4:E24) -> 81.75345251 | F25: =SUM(F4:F24) -> 54.90609864 | G25: =SUM(G4:G24) -> 16.49878727

Sheet PODSUMOWANIE
A2: WYNIKI ANALIZY WIELOKRYTERIALNEJ
A3: SĄSIEDZI W1 I W2 | C3: SĄSIEDZI W3 I W4 | E3: POZOSTALI | G3: SPOŁECZEŃSTWO
A4: W1 | B4: ='SPOŁ W1 i W2'!$C$25 -> 50.82306639 | C4: W1 | D4: ='SPOŁ W3 i W4'!C$25 -> 57.57558678 | E4: W1 | F4: =INNE!C$25 -> 48.0761077 | G4: W1 | H4: =SPOŁECZEŃSTWO!C$25 -> 49.82473112 | I4: W1 PZPWM
A5: W2 | B5: ='SPOŁ W1 i W2'!$D$25 -> 74.12354493 | C5: W2 | D5: ='SPOŁ W3 i W4'!D$25 -> 64.34815809 | E5: W2 | F5: =INNE!D$25 -> 76.56246157 | G5: W2 | H5: =SPOŁECZEŃSTWO!D$25 -> 69.93683938 | I5: W2 WYKONAWCY
A6: W3 | B6: ='SPOŁ W1 i W2'!$E$25 -> 89.59075342 | C6: W3 | D6: ='SPOŁ W3 i W4'!E$25 -> 60.34189165 | E6: W3 | F6: =INNE!E$25 -> 95.25503862 | G6: W3 | H6: =SPOŁECZEŃSTWO!E$25 -> 81.75345251 | I6: W3 DK50 I A2
A7: W4 | B7: ='SPOŁ W1 i W2'!$F$25 -> 63.67902436 | C7: W4 | D7: ='SPOŁ W3 i W4'!F$25 -> 39.89834474 | E7: W4 | F7: =INNE!F$25 -> 65.72852072 | G7: W4 | H7: =SPOŁECZEŃSTWO!F$25 -> 54.90609864 | I7: W4 DK50 I 400 KV
A8: W5 | B8: ='SPOŁ W1 i W2'!$G$25 -> 11.18419155 | C8: W5 | D8: ='SPOŁ W3 i W4'!G$25 -> 23.89699852 | E8: W5 | F8: =INNE!G$25 -> 9.669753398 | G8: W5 | H8: =SPOŁECZEŃSTWO!G$25 -> 16.49878727 | I8: W5 HISTORYCZNY
A10: UPORZĄDKOWANIE WARIANTÓW
A11: SĄSIEDZI W1 I W2
A12: W1 PZPWM | B12: =B4 -> 50.82306639
A13: W2 WYKONAWCY | B13: =B5 -> 74.12354493
A14: W3 DK50 I A2 | B14: 89.59075342
A15: W4 DK50 I 400 KV | B15: 63.67902436
A16: W5 HISTORYCZNY | B16: 11.18419155
A19: SĄSIEDZI W3 I W4
A20: W1 PZPWM | B20: =D4 -> 57.57558678
A21: W2 WYKONAWCY | B21: =D5 -> 64.34815809
A22: W3 DK50 I A2 | B22: 60.34189165
A23: W4 DK50 I 400 KV | B23: 39.89834474
A24: W5 HISTORYCZNY | B24: 23.89699852
A27: POZOSTALI
A28: W1 PZPWM | B28: =F4 -> 48.0761077
A29: W2 WYKONAWCY | B29: =F5 -> 76.56246157
A30: W3 DK50 I A2 | B30: 95.25503862
A31: W4 DK50 I 400 KV | B31: 65.72852072
A32: W5 HISTORYCZNY | B32: 9.669753398
A35: SPOŁECZEŃSTWO
A36: W1 PZPWM | B36: =H4 -> 49.82473112
A37: W2 WYKONAWCY | B37: =H5 -> 69.93683938
A38: W3 DK50 I A2 | B38: 81.75345251
A39: W4 DK50 I 400 KV | B39: 54.90609864
A40: W5 HISTORYCZNY | B40: 16.49878727
